bitfinex/quotes_SOLUSD_20250207
["timestamp","ask_amount","ask_price","bid_price","bid_amount"]
[1738901417357,0.03,194.8,194.79,20.94615032]
[1738901419169,0.03,194.8,194.75,5.1346]
[1738901419557,0.03,194.8,194.74,20.94745032]
[1738901420481,15.84245032,194.8,194.74,5.135]
[1738901420656,25.36913243,194.8,194.73,25.33913243]
[1738901420853,25.36913243,194.8,194.76,20.0]
[1738901421473,0.03,194.8,194.76,20.0]
[1738901422082,0.03,194.8,194.78,0.063]
[1738901423254,25.36913243,194.8,194.78,0.063]
[1738901423654,0.03,194.8,194.78,0.063]
[1738901426173,6.2278,194.79,194.78,0.063]
[1738901427875,0.03,194.8,194.78,0.063]
[1738901428573,25.36913243,194.8,194.78,0.063]
[1738901429083,25.33913243,194.79,194.78,0.063]
[1738901432078,30.47283243,194.79,194.78,0.063]
[1738901437580,30.47283243,194.79,194.7,0.063]
[1738901437581,0.37647,194.77,194.7,0.063]
[1738901437756,25.33913243,194.71,194.7,0.063]
[1738901439082,30.47493243,194.71,194.7,0.063]
[1738901439264,25.33913243,194.71,194.7,0.063]
[1738901440277,30.47493243,194.71,194.7,0.063]
[1738901442783,20.99111416,194.71,194.7,0.063]
[1738901442964,21.95437138,194.71,194.7,0.063]
[1738901446183,15.85531416,194.71,194.7,0.063]
[1738901446367,0.96329028,194.74,194.7,0.063]
[1738901446368,15.85531416,194.74,194.7,0.063]
[1738901446573,5.135,194.75,194.7,0.063]
[1738901446574,20.99031416,194.75,194.7,0.063]
[1738901446879,20.99031416,194.75,194.67,15.41831416]
[1738901447061,15.85531416,194.74,194.66,15.85531416]
[1738901447481,15.85531416,194.73,194.7,0.063]
[1738901448782,15.85531416,194.74,194.7,0.063]
[1738901450088,15.85531416,194.73,194.7,0.063]
[1738901450593,15.85531416,194.71,194.7,0.063]
[1738901451384,15.85531416,194.72,194.7,0.063]
[1738901451573,15.85531416,194.74,194.7,0.063]
[1738901452184,15.85531416,194.73,194.7,0.063]
[1738901453470,15.85531416,194.72,194.7,0.063]
[1738901454087,15.85531416,194.71,194.7,0.063]
[1738901455363,20.99111416,194.71,194.7,0.063]
[1738901456096,15.85531416,194.74,194.7,0.063]
[1738901458085,20.99031416,194.74,194.7,0.063]
[1738901460092,21.02031416,194.74,194.7,0.063]
[1738901461274,15.85531416,194.73,194.7,0.063]
[1738901463411,0.03,194.74,194.7,0.063]
[1738901463691,0.03,194.74,194.72,15.85531416]
[1738901464283,0.03,194.74,194.73,15.85531416]
[1738901464585,0.03,194.74,194.73,10.13478201]
[1738901465181,0.03,194.74,194.72,10.13478201]
[1738901465381,0.03,194.74,194.71,15.27048201]
[1738901466676,0.03,194.74,194.72,15.83923681]
[1738901467398,0.03,194.74,194.72,20.97463681]
[1738901467594,0.03,194.74,194.73,15.83923681]
[1738901468808,0.03,194.74,194.73,20.97453681]
[1738901469104,0.03,194.74,194.71,20.97473681]
[1738901469495,0.03,194.74,194.71,5.1355]
[1738901469685,0.03,194.74,194.7,15.90223681]
[1738901469881,0.03,194.74,194.7,5.1991]
[1738901470582,0.03,194.74,194.7,21.03833681]
[1738901475107,0.03,194.74,194.7,5.1991]
[1738901475497,0.03,194.74,194.7,0.063]
[1738901476605,15.86923681,194.74,194.7,0.063]
[1738901477210,0.03,194.74,194.7,0.063]
[1738901480617,15.86923681,194.74,194.7,0.063]
[1738901481611,0.03,194.74,194.7,0.063]
[1738901482005,0.03,194.74,194.7,15.90223681]
[1738901482295,0.03,194.74,194.72,15.83923681]
[1738901483202,0.03,194.74,194.71,15.83923681]
[1738901483717,0.03,194.74,194.72,15.83923681]
[1738901484118,0.03,194.74,194.71,20.97483681]
[1738901484717,0.03,194.74,194.72,15.83923681]
[1738901488309,0.03,194.74,194.71,20.97483681]
[1738901488612,0.03,194.74,194.71,15.27294449]
[1738901494018,0.03,194.74,194.72,10.13734449]
[1738901498227,10.16734449,194.74,194.7,0.063]
[1738901499829,0.03,194.74,194.7,0.063]
[1738901500740,10.16734449,194.74,194.7,0.063]
[1738901501028,10.13734449,194.71,194.7,0.063]
[1738901502107,10.13734449,194.72,194.7,0.063]
[1738901502605,10.13734449,194.71,194.7,0.063]
[1738901503325,15.27314449,194.71,194.7,0.063]
[1738901506621,15.27274449,194.73,194.7,0.063]
[1738901507345,10.13734449,194.71,194.7,0.063]
[1738901507645,15.27314449,194.71,194.7,0.063]
[1738901519760,15.30314449,194.71,194.7,0.063]
[1738901520963,0.25098,194.69,194.67,0.063]
[1738901521126,24.51268667,194.68,194.67,0.063]
[1738901521323,30.81438667,194.68,194.67,0.063]
[1738901521843,10.13734449,194.69,194.67,0.063]
[1738901522140,15.30314449,194.71,194.67,0.063]
[1738901522338,10.13734449,194.7,194.67,0.063]
[1738901523636,10.13734449,194.69,194.67,0.063]
[1738901524745,15.27374449,194.69,194.67,0.063]
[1738901525630,15.30334449,194.71,194.67,0.063]
[1738901525833,0.03,194.71,194.67,0.063]
[1738901530754,0.03,194.71,194.67,10.20034449]
[1738901530945,0.03,194.71,194.67,15.33704449]
[1738901534327,0.03,194.71,194.67,0.063]
[1738901534542,10.13734449,194.68,194.67,0.063]
[1738901534854,23.54919302,194.68,194.67,0.063]
[1738901535044,24.51264225,194.68,194.67,0.063]
[1738901536158,29.64924225,194.68,194.67,0.063]
[1738901539048,37.99741225,194.68,194.67,0.0001]
[1738901539657,36.65749302,194.68,194.67,0.0001]
[1738901540066,15.27364449,194.7,194.67,0.0001]
[1738901541059,10.16734449,194.71,194.67,0.0001]
[1738901541253,0.03,194.71,194.67,0.0001]
[1738901541564,0.03,194.71,194.67,10.13744449]
[1738901542238,0.03,194.71,194.67,0.0001]
[1738901542433,15.30314449,194.71,194.67,0.0001]
[1738901543060,5.1658,194.71,194.67,0.0001]
[1738901546755,0.03,194.71,194.67,10.13744449]
[1738901547059,0.03,194.71,194.69,10.13734449]
[1738901547271,0.03,194.71,194.68,10.13734449]
[1738901547472,0.03,194.71,194.67,10.13744449]
[1738901548762,0.03,194.71,194.67,0.0001]
[1738901548960,0.03,194.71,194.68,10.13734449]
[1738901549164,0.03,194.71,194.7,10.13734449]
[1738901550268,0.03,194.71,194.7,16.85344449]
[1738901552767,0.03,194.71,194.7,1.58]
[1738901553765,0.03,194.71,194.69,137.2]
[1738901555878,0.03,194.71,194.69,147.33734449]
[1738901556975,0.03,194.71,194.69,10.13734449]
[1738901558165,0.03,194.71,194.7,10.13734449]
[1738901560371,0.03,194.71,194.7,15.27344449]
[1738901562586,0.03,194.71,194.69,15.27364449]
[1738901562877,0.03,194.71,194.7,20.0]
[1738901564977,0.03,194.71,194.7,10.13734449]
[1738901565556,0.0001,194.71,194.7,206.93663098]
[1738901565781,0.0001,194.71,194.7,207.93663098]
[1738901566048,0.03,194.74,194.73,20.0]
[1738901566280,0.03,194.74,194.73,169.84146474]
[1738901566459,0.03,194.74,194.73,169.45550449]
[1738901567680,0.03,194.74,194.73,174.59080449]
[1738901568678,0.03,194.74,194.73,180.28435259]
[1738901571078,0.03,194.74,194.73,179.78239259]
[1738901571459,0.03,194.74,194.73,178.16619259]
[1738901571786,0.03,194.74,194.73,40.96619259]
[1738901577482,0.03,194.74,194.73,20.0]
[1738901577687,0.03,194.74,194.7,15.83089259]
[1738901578065,0.03,194.74,194.69,15.83089259]
[1738901578360,0.03,194.74,194.7,0.063]
[1738901580400,0.03,194.74,194.71,15.83089259]
[1738901583383,0.03,194.74,194.72,15.83089259]
[1738901583784,0.03,194.74,194.71,15.83089259]
[1738901584971,0.03,194.74,194.7,15.89389259]
[1738901585170,0.03,194.74,194.7,0.063]
[1738901586602,5.165,194.74,194.7,0.063]
[1738901587395,0.03,194.74,194.72,15.83089259]
[1738901587607,0.03,194.74,194.73,15.83089259]
[1738901588787,0.03,194.74,194.72,15.83089259]
[1738901589097,0.03,194.74,194.7,153.09389259]
[1738901590381,0.03,194.74,194.71,0.063]
[1738901594244,0.03,194.74,194.72,10.13934695]
[1738901594381,0.03,194.8,194.73,30.64130695]
[1738901594713,0.03,194.8,194.79,10.13934695]
[1738901596311,0.03,194.8,194.78,10.13934695]
[1738901596510,0.03,194.8,194.79,10.13934695]
[1738901596719,0.03,194.8,194.79,15.82761015]
[1738901602618,0.03,194.8,194.77,137.2]
[1738901603229,0.03,194.8,194.77,153.02761015]
[1738901604018,0.03,194.8,194.79,15.82761015]
[1738901608138,0.03,194.8,194.79,20.96131015]
[1738901608436,0.03,194.8,194.79,21.21229015]
[1738901608632,0.03,194.8,194.79,21.59774301]
[1738901610123,0.03,194.8,194.79,158.79774301]
[1738901610331,29.32406348,194.88,194.82,20.0]
[1738901610518,6.6922,194.9,194.87,15.82761015]
[1738901611638,0.03,194.9,194.89,15.82761015]
[1738901611943,0.03,194.9,194.88,15.82761015]
[1738901614447,0.03,194.9,194.87,15.82761015]
[1738901616552,0.03,194.9,194.88,15.82761015]
[1738901617845,0.03,194.9,194.84,158.15991015]
[1738901618028,15.85761015,194.9,194.84,137.2]
[1738901618851,10.15627827,194.9,194.84,137.2]
[1738901619050,0.03,194.9,194.84,137.2]
[1738901619255,0.03,194.9,194.84,147.32627827]
[1738901619638,0.03,194.9,194.84,137.2]
[1738901619842,5.1608,194.9,194.84,137.2]
[1738901620038,5.1608,194.9,194.84,147.32627827]
[1738901620636,5.1608,194.9,194.84,137.2]
[1738901621553,5.1608,194.9,194.84,147.32627827]
[1738901622335,0.03,194.9,194.84,10.12627827]
[1738901622750,0.03,194.9,194.89,10.12627827]
[1738901623049,0.03,194.91,194.9,0.50196]
[1738901623234,0.03,194.91,194.89,51.01562208]
[1738901623444,0.03,194.91,194.89,10.510509]
[1738901624343,0.03,194.91,194.9,5.1308]
[1738901624736,0.03,194.91,194.9,20.9348163]
[1738901627450,0.03,194.91,194.9,36.7388326]
[1738901627652,0.03,194.91,194.9,20.9348163]
[1738901627843,0.03,194.91,194.9,37.12322815]
[1738901628233,0.03,194.91,194.9,174.32322815]
[1738901628445,0.03,194.91,194.9,173.9388326]
[1738901629150,0.0001,194.91,194.9,174.4407926]
[1738901631638,0.0001,194.91,194.9,173.9388326]
[1738901632455,0.0001,194.91,194.9,158.1348163]
[1738901633162,0.0001,194.91,194.9,173.9388326]
[1738901634265,0.0001,194.91,194.9,36.7388326]
[1738901634458,0.0001,194.91,194.9,37.1233609]
[1738901637059,0.0001,194.91,194.9,20.9348163]
[1738901637264,0.0001,194.91,194.9,15.8040163]
[1738901638657,0.0001,194.91,194.9,15.8670163]
[1738901638842,0.0001,194.91,194.9,20.9978163]
[1738901639247,0.0001,194.91,194.9,36.8018326]
[1738901639643,0.0001,194.91,194.9,37.18627611]
[1738901641642,0.0001,194.91,194.9,21.38225981]
[1738901645474,0.0001,194.91,194.9,20.9978163]
[1738901645649,0.0001,194.91,194.9,15.8670163]
[1738901645844,0.0001,194.91,194.9,0.063]
[1738901646065,0.0001,194.91,194.9,15.8670163]
[1738901646646,0.0001,194.91,194.9,10.18143936]
[1738901648446,0.0001,194.91,194.9,0.063]
[1738901651971,0.0001,194.91,194.9,10.18143936]
[1738901652172,0.0001,194.91,194.9,51.04006924]
[1738901652349,0.0001,194.91,194.9,10.5663118]
[1738901652672,0.0001,194.91,194.9,10.18143936]
[1738901654673,0.0001,194.91,194.9,0.063]
[1738901662059,10.11853936,194.91,194.9,0.063]
[1738901662256,0.0001,194.91,194.9,0.063]
[1738901662459,5.1306,194.91,194.9,0.063]
[1738901663775,15.24903936,194.91,194.9,0.063]
[1738901665777,0.0001,194.91,194.9,0.063]
[1738901677307,0.0001,194.91,194.9,10.18143936]
[1738901678976,0.0001,194.91,194.9,0.063]
[1738901682284,5.1306,194.91,194.9,0.063]
[1738901682482,17.21120453,194.91,194.9,0.063]
[1738901682681,10.11843936,194.84,194.8,0.063]
[1738901683187,10.11843936,194.82,194.8,0.063]
[1738901684288,15.25163936,194.81,194.8,0.063]
[1738901684772,5.1332,194.81,194.8,0.063]
[1738901686296,22.32689656,194.83,194.8,0.063]
[1738901686498,11.6226,194.83,194.8,0.063]
[1738901686808,6.4898,194.83,194.8,0.063]
[1738901690095,27.45949656,194.83,194.8,0.063]
[1738901691694,11.6224,194.83,194.8,0.063]
[1738901693730,15.83709656,194.9,194.8,0.063]
[1738901694010,0.0001,194.91,194.86,15.83709656]
[1738901694390,5.1307,194.91,194.86,15.83709656]
[1738901695127,5.1307,194.91,194.85,15.83709656]
[1738901695626,20.96779656,194.91,194.84,15.83709656]
[1738901696337,5.1307,194.91,194.85,15.83709656]
[1738901696685,0.0001,194.91,194.87,15.83709656]
[1738901697008,0.0001,194.91,194.88,15.83709656]
[1738901697325,0.0001,194.91,194.86,15.83709656]
[1738901697488,0.0001,194.91,194.84,15.83709656]
[1738901698095,15.83719656,194.91,194.84,15.83709656]
[1738901698491,5.1308,194.9,194.84,15.83709656]
[1738901699698,15.83709656,194.88,194.81,15.83709656]
[1738901699900,15.83709656,194.88,194.8,15.90009656]
[1738901700833,5.1316,194.87,194.8,15.90009656]
[1738901701007,5.1316,194.87,194.82,15.83709656]
[1738901701205,5.131,194.89,194.84,15.83709656]
[1738901702311,5.1308,194.9,194.84,15.83709656]
[1738901702996,5.1308,194.9,194.85,15.83709656]
[1738901703198,5.1308,194.9,194.84,15.83709656]
[1738901703421,5.1308,194.9,194.83,15.83709656]
[1738901703422,20.96789656,194.9,194.83,15.83709656]
[1738901703627,15.83709656,194.89,194.82,15.83709656]
[1738901704433,15.83709656,194.9,194.83,15.83709656]
[1738901704622,5.131,194.89,194.83,15.83709656]
[1738901705517,15.83719656,194.91,194.83,15.83709656]
[1738901705720,5.1308,194.9,194.83,15.83709656]
[1738901706228,5.1308,194.9,194.85,15.83709656]
[1738901706730,5.1308,194.9,194.84,10.12444323]
[1738901707030,5.1308,194.9,194.85,10.12444323]
[1738901708136,5.1306,194.91,194.85,10.12444323]
[1738901708429,15.25504323,194.91,194.84,10.12444323]
[1738901708634,5.1306,194.91,194.85,10.12444323]
[1738901709136,5.1306,194.91,194.88,10.12444323]
[1738901709356,0.0001,194.91,194.88,10.12444323]
[1738901711323,0.0001,194.91,194.87,10.12444323]
[1738901712128,0.0001,194.91,194.86,10.12444323]
[1738901713128,0.0001,194.91,194.85,10.12444323]
[1738901713326,0.0001,194.91,194.84,10.12444323]
[1738901713624,10.12444323,194.86,194.8,0.063]
[1738901714033,10.12444323,194.85,194.8,0.063]
[1738901714838,5.1324,194.84,194.8,0.063]
[1738901715049,21.49484323,194.84,194.8,0.063]
[1738901715247,10.12444323,194.81,194.8,0.063]
[1738901715540,24.66178176,194.81,194.8,0.063]
[1738901715763,10.12444323,194.78,194.74,0.063]
[1738901716063,10.12444323,194.79,194.74,0.063]
[1738901716366,10.12444323,194.8,194.74,0.063]
[1738901716737,5.1337,194.79,194.74,0.063]
[1738901717769,15.8388529,194.76,194.74,0.063]
[1738901718159,23.03985251,194.75,194.74,0.063]
[1738901718561,36.57719104,194.75,194.74,0.063]
[1738901718771,41.71189104,194.75,194.74,0.063]
[1738901718950,28.17455251,194.75,194.74,0.063]
[1738901720644,41.71189104,194.75,194.74,0.063]
[1738901720869,33.53733853,194.72,194.71,0.063]
[1738901721045,50.33946237,194.72,194.71,0.063]
[1738901721457,51.59044237,194.72,194.71,0.0001]
[1738901721777,44.78831853,194.71,194.7,0.0001]
[1738901721958,30.62717143,194.71,194.7,0.0001]
[1738901722369,29.62717143,194.71,194.7,0.0001]
[1738901722784,34.76297143,194.71,194.7,0.0001]
[1738901724585,20.9746529,194.71,194.7,0.0001]
[1738901724873,5.1354,194.73,194.7,0.0001]
[1738901725065,15.8388529,194.71,194.7,0.0001]
[1738901725882,15.8388529,194.72,194.7,0.0001]
[1738901726052,20.9742529,194.73,194.7,0.0001]
[1738901727453,5.1354,194.73,194.7,0.0001]
[1738901727660,5.135,194.75,194.7,0.0001]
[1738901727862,5.135,194.75,194.7,15.8389529]
[1738901728370,5.1345,194.76,194.7,15.8389529]
[1738901728561,14.50032905,194.79,194.72,15.8388529]
[1738901728562,15.8388529,194.79,194.72,15.8388529]
[1738901728765,15.8388529,194.8,194.73,15.8388529]
[1738901728970,1.5478,194.81,194.72,15.8388529]
[1738901728971,15.8388529,194.79,194.72,15.8388529]
[1738901729761,5.1337,194.79,194.73,15.8388529]
[1738901729981,5.1337,194.79,194.74,15.8388529]
[1738901730471,20.9725529,194.79,194.72,15.8388529]
[1738901730855,20.9725529,194.79,194.71,15.8388529]
[1738901731873,5.1342,194.77,194.7,15.8389529]
[1738901732873,5.134,194.78,194.72,15.8388529]
[1738901733170,20.9724529,194.8,194.73,15.8388529]
[1738901733978,0.03,194.81,194.76,15.8388529]
[1738901734275,0.03,194.81,194.77,15.8388529]
[1738901734854,0.03,194.81,194.76,15.8388529]
[1738901735170,5.1632,194.81,194.76,15.8388529]
[1738901736150,0.03,194.81,194.76,15.8388529]
[1738901739378,15.8688529,194.81,194.74,15.8388529]
[1738901739578,0.03,194.81,194.74,15.8388529]
[1738901740358,15.8688529,194.81,194.74,15.8388529]
[1738901740655,15.8388529,194.8,194.73,15.8388529]
[1738901740855,15.8388529,194.78,194.72,0.063]
[1738901741075,15.8388529,194.76,194.72,0.063]
[1738901741564,20.88533731,194.8,194.72,0.063]
[1738901741565,15.8388529,194.78,194.72,0.063]
[1738901741762,15.8388529,194.77,194.72,0.063]
[1738901742576,5.1345,194.76,194.72,0.063]
[1738901745267,15.8388529,194.75,194.72,0.063]
[1738901746370,20.9738529,194.74,194.72,0.063]
[1738901746670,16.80195586,194.73,194.72,0.063]
[1738901747063,15.8388529,194.73,194.72,0.063]
[1738901748284,20.9741529,194.73,194.72,0.063]
[1738901748589,5.135,194.74,194.72,0.063]
[1738901748786,20.9735529,194.76,194.72,0.063]
[1738901748977,5.1347,194.76,194.72,0.063]
[1738901750988,20.9735529,194.76,194.72,0.063]
[1738901752880,15.8388529,194.75,194.72,0.063]
[1738901754287,20.9735529,194.76,194.72,0.063]
[1738901755792,20.9730529,194.77,194.72,0.063]
[1738901757370,0.03,194.75,194.72,0.063]
[1738901759188,0.03,194.75,194.72,15.9018529]
[1738901760182,0.03,194.75,194.74,15.8388529]
[1738901760994,0.03,194.75,194.74,153.0388529]
[1738901761296,0.03,194.79,194.74,15.8388529]
[1738901761482,0.03,194.79,194.78,15.8388529]
[1738901761873,0.03,194.79,194.77,15.8388529]
[1738901762083,0.03,194.79,194.76,15.8388529]
[1738901762398,0.03,194.79,194.75,15.8388529]
[1738901762571,0.03,194.79,194.76,15.8388529]
[1738901764278,0.03,194.79,194.78,15.8388529]
[1738901766092,0.03,194.79,194.78,160.0876229]
[1738901766288,0.03,194.79,194.78,160.2131129]
[1738901766489,0.03,194.79,194.78,176.0519658]
[1738901766689,0.03,194.79,194.78,191.46381433]
[1738901766994,0.0001,194.79,194.78,191.46381433]
[1738901768604,0.0001,194.91,194.83,20.25098]
[1738901768817,0.0001,194.91,194.9,15.8388529]
[1738901769197,0.0001,194.91,194.89,15.8388529]
[1738901769687,0.0001,194.91,194.9,15.8388529]
[1738901770123,0.0001,194.91,194.9,16.22330513]
[1738901770621,0.0001,194.91,194.9,21.35410513]
[1738901770925,0.0001,194.91,194.9,37.56942803]
[1738901772104,0.0001,194.91,194.9,174.89491803]
[1738901772333,0.03,194.94,194.93,20.37647]
[1738901772496,0.03,194.95,194.94,0.50196]
[1738901772698,0.03,194.95,194.94,153.92460063]
[1738901772914,0.03,194.95,194.94,153.5408129]
[1738901773281,0.03,194.95,194.94,166.95266143]
[1738901773619,0.03,194.95,194.94,167.95266143]
[1738901773985,0.03,194.95,194.94,153.5408129]
[1738901774188,0.03,194.95,194.94,158.6705129]
[1738901775678,0.03,194.95,194.94,174.08236143]
[1738901775878,0.0001,194.95,194.94,174.08236143]
[1738901776094,0.0001,194.95,194.94,180.40546143]
[1738901776381,0.03,194.99,194.98,21.74479]
[1738901776587,0.03,194.99,194.98,175.16699229]
[1738901776814,0.03,194.99,194.98,174.7836429]
[1738901777388,0.03,194.99,194.98,179.9123429]
[1738901777805,0.03,194.99,194.98,193.70066143]
[1738901778189,0.03,194.99,194.98,194.70066143]
[1738901778596,0.03,194.99,194.98,193.70066143]
[1738901778795,0.03,194.99,194.98,194.70066143]
[1738901779001,0.03,194.99,194.98,193.70066143]
[1738901779499,0.03,194.99,194.98,194.70066143]
[1738901779706,0.03,195.01,195.0,0.12549]
[1738901779903,0.03,195.01,195.0,32.18638731]
[1738901781811,0.03,195.01,195.0,37.31458731]
[1738901782585,0.03,195.01,195.0,21.47573441]
[1738901783012,0.03,195.01,195.0,37.31458731]
[1738901783896,0.03,195.01,195.0,20.9670529]
[1738901784095,0.03,195.01,194.99,15.8388529]
[1738901784701,0.03,195.01,195.0,15.8388529]
[1738901785008,0.03,195.01,195.0,16.22241741]
[1738901785193,0.03,195.01,195.0,16.59888741]
[1738901785398,0.03,195.01,195.0,16.22241741]
[1738901786103,0.03,195.01,195.0,37.56594031]
[1738901786419,0.03,195.01,195.0,37.69143031]
[1738901786920,0.03,195.01,195.0,52.10327884]
[1738901787213,1.6164,195.12,195.04,20.0]
[1738901787406,1.6164,195.12,195.07,15.8388529]
[1738901788315,26.9324193,195.17,195.1,15.8388529]
[1738901788316,5.1242,195.16,195.1,15.8388529]
[1738901788532,5.1242,195.16,195.11,15.8388529]
[1738901788915,28.5647193,195.17,195.11,15.8388529]
[1738901789230,6.756,195.17,195.12,15.8388529]
[1738901789428,1.6323,195.17,195.11,15.8388529]
[1738901789732,5.1241,195.16,195.1,15.8388529]
[1738901790942,5.1241,195.16,195.06,15.8388529]
[1738901790943,15.8388529,195.13,195.06,15.8388529]
[1738901791596,27.4953529,195.15,195.08,15.8388529]
[1738901792114,15.8388529,195.14,195.07,15.8388529]
[1738901792616,11.6565,195.15,195.1,15.8388529]
[1738901792806,6.5323,195.15,195.11,15.8388529]
[1738901792997,11.6566,195.15,195.09,15.8388529]
[1738901793201,15.8388529,195.14,195.07,15.8388529]
[1738901793432,15.8388529,195.14,195.06,15.8388529]
[1738901793801,15.8388529,195.14,195.07,15.8388529]
[1738901794295,5.1247,195.13,195.07,15.8388529]
[1738901797510,5.1245,195.14,195.09,15.8388529]
[1738901799495,6.5323,195.15,195.09,15.8388529]
[1738901799913,11.6566,195.15,195.09,15.8388529]
[1738901800837,15.8388529,195.12,195.04,153.0388529]
[1738901801036,15.8388529,195.1,195.04,137.2]
[1738901801205,15.8388529,195.1,195.03,15.8388529]
[1738901801816,1.5561,195.09,195.03,15.8388529]
[1738901802141,6.6472,195.08,195.02,15.8388529]
[1738901802303,20.9651529,195.07,195.0,15.8388529]
[1738901802505,20.9651529,195.07,194.95,12.8232]
[1738901802506,15.8388529,195.05,194.98,15.8388529]
[1738901802722,15.8388529,195.04,194.97,15.8388529]
[1738901803111,15.8388529,195.03,194.96,15.8388529]
[1738901803623,15.37337404,195.06,194.94,0.063]
[1738901803624,15.8388529,195.0,194.94,0.063]
[1738901803828,22.3663529,195.01,194.94,0.063]
[1738901804321,5.1282,195.0,194.94,0.063]
[1738901805024,20.9670529,195.0,194.94,0.063]
[1738901805406,5.1282,195.0,194.94,15.9018529]
[1738901806520,6.5275,195.01,194.95,15.8388529]
[1738901806924,11.6554,195.01,194.94,15.9018529]
[1738901807830,11.6554,195.01,194.96,15.8388529]
[1738901808011,11.6554,195.01,194.97,15.8388529]
[1738901808012,6.5275,195.01,194.97,15.8388529]
[1738901811825,1.6237,195.02,194.99,15.8388529]
[1738901812135,6.3512,195.06,195.01,15.8388529]
[1738901812335,1.5202,195.07,195.04,15.8388529]
[1738901812633,1.5202,195.07,195.05,15.8388529]
[1738901813414,1.5202,195.07,195.03,15.8388529]
[1738901813925,6.6466,195.07,195.02,15.8388529]
[1738901816138,6.6466,195.07,195.03,15.8388529]
[1738901818138,6.6466,195.07,195.02,15.8388529]
[1738901818839,6.6766,195.07,195.03,15.8388529]
[1738901820143,6.6766,195.07,195.02,15.8388529]
[1738901820734,22.5154529,195.07,195.0,15.8388529]
[1738901821042,6.6766,195.07,195.01,15.8388529]
[1738901821418,6.6766,195.07,195.02,15.8388529]
[1738901821743,6.6766,195.07,195.01,15.8388529]
[1738901823442,1.5502,195.07,195.03,15.8388529]
[1738901823647,1.5502,195.07,195.05,15.8388529]
[1738901823831,1.5502,195.07,195.03,15.8388529]
[1738901824423,6.6765,195.07,195.03,15.8388529]
[1738901824623,22.5153529,195.07,195.0,15.8388529]
[1738901825151,22.5153529,195.07,194.99,15.8388529]
[1738901826746,22.5153529,195.07,195.0,15.8388529]
[1738901827232,1.5502,195.07,195.04,15.8388529]
[1738901827440,0.03,195.07,195.04,15.8388529]
[1738901828847,0.03,195.07,195.05,15.8388529]
[1738901830746,0.03,195.07,195.04,15.8388529]
[1738901830941,0.03,195.07,195.02,15.8388529]
[1738901831152,0.03,195.07,195.01,15.8388529]
[1738901831647,0.03,195.07,195.02,15.8388529]
[1738901832950,0.03,195.07,195.01,15.8388529]
[1738901833161,15.8388529,195.05,195.0,0.063]
[1738901833455,0.03,195.07,195.0,0.063]
[1738901833456,23.5868529,195.04,195.0,0.063]
[1738901833755,7.748,195.04,195.0,0.063]
[1738901835246,5.1274,195.03,195.0,0.063]
[1738901836228,1.617,195.04,195.02,15.8388529]
[1738901836434,0.03,195.07,195.02,15.8388529]
[1738901836650,0.03,195.07,195.03,15.8388529]
[1738901836954,0.03,195.07,195.04,15.8388529]
[1738901838343,0.03,195.07,195.01,5.1277]
[1738901838344,0.03,195.07,195.06,15.8388529]
[1738901839336,0.03,195.07,195.05,15.8388529]
[1738901839834,0.03,195.07,195.06,15.8388529]
[1738901841338,0.03,195.07,195.06,20.9654529]
[1738901842958,0.03,195.07,195.06,15.8388529]
[1738901843965,0.03,195.07,195.05,15.8388529]
[1738901844651,0.03,195.07,195.04,15.8388529]
[1738901845372,0.03,195.07,195.03,15.8388529]
[1738901845551,0.03,195.07,195.01,15.8388529]
[1738901845752,15.8688529,195.07,195.0,15.9018529]
[1738901845950,17.4615529,195.06,195.0,0.063]
[1738901846150,23.8234529,195.06,195.0,0.063]